Workbook

Sheet паспорт
A1: ПАТ "УКРТРАНСГАЗ" | G1: ПАСПОРТ ФІЗИКО-ХІМІЧНИХ ПОКАЗНИКІВ ПРИРОДНОГО ГАЗУ № 653
A2: Філія "УМГ "ХАРКІВТРАНСГАЗ" | G2: переданого Сєвєродонецьким ЛВУМГ та прийнятого ПАТ "Луганськгаз", ПАТ "РКТК"
A3: Сєвєродонецьке ЛВУМГ | G3: Маршрут № 653
A4: Вимірювальна хіміко-аналітична лабораторія
A5: Свідоцтво № РЬ089/2014 чинно до 06.06.2017 р. | K5: по газопроводу "Луганськ-Лисичанськ-Рубіжне" | V5: за період з | X5: 01.03.2017 р. | Z5: по | AA5: 31.03.2017 р.
A7: Число місяця | B7: Компонентний склад, мол. % | N7: Фізико-хімічні показники газу обчислені на основі компонентного складу, 101,325 кПа | X7: Температура точки роси за вологою (Р = 3.92 МПа), °С | Y7: Температура точки роси за вуглеводнями, °С | Z7: Вміст сірководню, г/м3 | AA7: Вміст меркаптанової сірки, г/м3 | AB7: Вміст механічних домішок, г/м3
N8: Густина абсолютна, кг/м3,при 20 °С, | O8: Температура вимірювання/згоряння при 20/25°С
B9: метан, С1 | C9: етан, С2 | D9: пропан, С3 | E9: ізо-бутан, і-С4 | F9: н-бутан, н-С4 | G9: нео-пентан, нео-С5 | H9: ізо-пентан, і-С5 | I9: н-пентан, н-С5 | J9: гексани та вищі, С6+ | K9: кисень, О2 | L9: азот, N2 | M9: діоксид вуглецю, CО2 | O9: Теплота згоряння нижча | R9: Теплота згоряння вища | U9: Число Воббе вище
O10: ккал/м³ | P10: МДж/м³ | Q10: кВт⋅год/м³ | R10: ккал/м³ | S10: МДж/м³ | T10: кВт⋅год/м³ | U10: ккал/м³ | V10: МДж/м³ | W10: кВт⋅год/м³
A11: 1 | B11: 88.7635 | C11: 3.313 | D11: 1.5198 | E11: 0.2031 | F11: 0.3875 | G11: 0.0063 | H11: 0.0886 | I11: 0.076 | J11: 0.0515 | K11: 0.0124 | L11: 3.6724 | M11: 1.9059 | N11: 0.7683 | O11: =P11*238.8459 -> 8100.888621 | P11: 33.9168 | Q11: =P11/3.6 -> 9.421333333 | R11: =S11*238.8459 -> 8967.636508 | S11: 37.5457 | T11: =S11/3.6 -> 10.42936111 | U11: =V11/0.0041868 -> 11274.43394 | V11: 47.2038 | W11: =V11/3.6 -> 13.11216667 | X11: -7.5 | Y11: -10.6 | AC11: =SUM(B11:M11)+$K$42+$N$42 -> 100
A12: 2 | N12: 0.7684 | O12: =P12*238.8459 -> 8100.888621 | P12: 33.9168 | Q12: =P12/3.6 -> 9.421333333 | R12: =S12*238.8459 -> 8967.636508 | S12: 37.5457 | T12: =S12/3.6 -> 10.42936111 | U12: =V12/0.0041868 -> 11274.43394 | V12: 47.2038 | W12: =V12/3.6 -> 13.11216667 | AC12: 0
A13: 3 | N13: 0.7678 | O13: 8100.888621 | P13: 33.9168 | Q13: 9.421333333 | R13: 8967.636508 | S13: 37.5457 | T13: 10.42936111 | U13: 11274.43394 | V13: 47.2038 | W13: 13.11216667 | AC13: 0 | AD13: =IF(AC13=100,"ОК"," ") -> 
A14: 4 | N14: 0.7682 | O14: 8100.888621 | P14: 33.9168 | Q14: 9.421333333 | R14: 8967.636508 | S14: 37.5457 | T14: 10.42936111 | U14: 11274.43394 | V14: 47.2038 | W14: 13.11216667 | AC14: 0 | AD14: =IF(AC14=100,"ОК"," ") -> 
A15: 5 | N15: 0.7683 | O15: 8100.888621 | P15: 33.9168 | Q15: 9.421333333 | R15: 8967.636508 | S15: 37.5457 | T15: 10.42936111 | U15: 11274.43394 | V15: 47.2038 | W15: 13.11216667 | AC15: 0
A16: 6 | N16: 0.7682 | O16: 8100.888621 | P16: 33.9168 | Q16: 9.421333333 | R16: 8967.636508 | S16: 37.5457 | T16: 10.42936111 | U16: 11274.43394 | V16: 47.2038 | W16: 13.11216667 | AC16: 0
A17: 7 | N17: 0.7683 | O17: 8100.888621 | P17: 33.9168 | Q17: 9.421333333 | R17: 8967.636508 | S17: 37.5457 | T17: 10.42936111 | U17: 11274.43394 | V17: 47.2038 | W17: 13.11216667 | AC17: 0
A18: 8 | N18: 0.7688 | O18: 8100.888621 | P18: 33.9168 | Q18: 9.421333333 | R18: 8967.636508 | S18: 37.5457 | T18: 10.42936111 | U18: 11274.43394 | V18: 47.2038 | W18: 13.11216667 | AC18: 0
A19: 9 | N19: 0.07692 | O19: 8100.888621 | P19: 33.9168 | Q19: 9.421333333 | R19: 8967.636508 | S19: 37.5457 | T19: 10.42936111 | U19: 11274.43394 | V19: 47.2038 | W19: 13.11216667 | AC19: 0
A20: 10 | N20: 0.7696 | O20: 8100.888621 | P20: 33.9168 | Q20: 9.421333333 | R20: 8967.636508 | S20: 37.5457 | T20: 10.42936111 | U20: 11274.43394 | V20: 47.2038 | W20: 13.11216667 | AC20: 0
A21: 11 | N21: 0.7689 | O21: 8100.888621 | P21: 33.9168 | Q21: 9.421333333 | R21: 8967.636508 | S21: 37.5457 | T21: 10.42936111 | U21: 11274.43394 | V21: 47.2038 | W21: 13.11216667 | AC21: 0
A22: 12 | N22: 0.7685 | O22: 8100.888621 | P22: 33.9168 | Q22: 9.421333333 | R22: 8967.636508 | S22: 37.5457 | T22: 10.42936111 | U22: 11274.43394 | V22: 47.2038 | W22: 13.11216667 | AC22: 0
A23: 13 | N23: 0.7691 | O23: 8100.888621 | P23: 33.9168 | Q23: 9.421333333 | R23: 8967.636508 | S23: 37.5457 | T23: 10.42936111 | U23: 11274.43394 | V23: 47.2038 | W23: 13.11216667 | AC23: 0
A24: 14 | N24: 0.7692 | O24: 8100.888621 | P24: 33.9168 | Q24: 9.421333333 | R24: 8967.636508 | S24: 37.5457 | T24: 10.42936111 | U24: 11274.43394 | V24: 47.2038 | W24: 13.11216667 | AC24: 0
A25: 15 | B25: 87.8689 | C25: 3.5295 | D25: 1.599 | E25: 0.2154 | F25: 0.4087 | G25: 0.0027 | H25: 0.0819 | I25: 0.0718 | J25: 0.0696 | K25: 0.0096 | L25: 3.7384 | M25: 2.4045 | N25: 0.7702 | O25: =P25*238.8459 -> 8087.775981 | P25: 33.8619 | Q25: =P25/3.6 -> 9.406083333 | R25: =S25*238.8459 -> 8951.848794 | S25: 37.4796 | T25: =S25/3.6 -> 10.411 | U25: =V25/0.0041868 -> 11187.87618 | V25: 46.8414 | W25: =V25/3.6 -> 13.0115 | Z25: 0.0003 | AA25: 0.0002 | AB25: відс | AC25: 100 | AD25: ОК
A26: 16 | N26: 0.7688 | O26: =P26*238.8459 -> 8087.775981 | P26: 33.8619 | Q26: =P26/3.6 -> 9.406083333 | R26: =S26*238.8459 -> 8951.848794 | S26: 37.4796 | T26: =S26/3.6 -> 10.411 | U26: =V26/0.0041868 -> 11187.87618 | V26: 46.8414 | W26: =V26/3.6 -> 13.0115 | AC26: 0
A27: 17 | N27: 0.7682 | O27: 8087.775981 | P27: 33.8619 | Q27: 9.406083333 | R27: 8951.848794 | S27: 37.4796 | T27: 10.411 | U27: 11187.87618 | V27: 46.8414 | W27: 13.0115 | AC27: 0
A28: 18 | N28: 0.7692 | O28: 8087.775981 | P28: 33.8619 | Q28: 9.406083333 | R28: 8951.848794 | S28: 37.4796 | T28: 10.411 | U28: 11187.87618 | V28: 46.8414 | W28: 13.0115 | AC28: 0
A29: 19 | N29: 0.7689 | O29: 8087.775981 | P29: 33.8619 | Q29: 9.406083333 | R29: 8951.848794 | S29: 37.4796 | T29: 10.411 | U29: 11187.87618 | V29: 46.8414 | W29: 13.0115 | AC29: 0
A30: 20 | N30: 0.7688 | O30: 8087.775981 | P30: 33.8619 | Q30: 9.406083333 | R30: 8951.848794 | S30: 37.4796 | T30: 10.411 | U30: 11187.87618 | V30: 46.8414 | W30: 13.0115 | AC30: 0 | AD30: =IF(AC30=100,"ОК"," ") -> 
A31: 21 | N31: 0.7697 | O31: 8087.775981 | P31: 33.8619 | Q31: 9.406083333 | R31: 8951.848794 | S31: 37.4796 | T31: 10.411 | U31: 11187.87618 | V31: 46.8414 | W31: 13.0115 | AC31: 0
A32: 22 | N32: 0.7699 | O32: 8087.775981 | P32: 33.8619 | Q32: 9.406083333 | R32: 8951.848794 | S32: 37.4796 | T32: 10.411 | U32: 11187.87618 | V32: 46.8414 | W32: 13.0115 | AC32: 0
A33: 23 | N33: 0.7705 | O33: 8087.775981 | P33: 33.8619 | Q33: 9.406083333 | R33: 8951.848794 | S33: 37.4796 | T33: 10.411 | U33: 11187.87618 | V33: 46.8414 | W33: 13.0115 | AC33: 0 | AD33: =IF(AC33=100,"ОК"," ") -> 
A34: 24 | N34: 0.7686 | O34: 8087.775981 | P34: 33.8619 | Q34: 9.406083333 | R34: 8951.848794 | S34: 37.4796 | T34: 10.411 | U34: 11187.87618 | V34: 46.8414 | W34: 13.0115 | AC34: 0
A35: 25 | N35: 0.7685 | O35: 8087.775981 | P35: 33.8619 | Q35: 9.406083333 | R35: 8951.848794 | S35: 37.4796 | T35: 10.411 | U35: 11187.87618 | V35: 46.8414 | W35: 13.0115 | AC35: 0
A36: 26 | N36: 0.769 | O36: 8087.775981 | P36: 33.8619 | Q36: 9.406083333 | R36: 8951.848794 | S36: 37.4796 | T36: 10.411 | U36: 11187.87618 | V36: 46.8414 | W36: 13.0115 | AC36: 0
A37: 27 | B37: 87.8723 | C37: 3.547 | D37: 1.6053 | E37: 0.2181 | F37: 0.4113 | G37: 0.0034 | H37: 0.1045 | I37: 0.0764 | J37: 0.0373 | K37: 0.0098 | L37: 3.656 | M37: 2.4586 | N37: 0.7689 | O37: =P37*238.8459 -> 8089.758402 | P37: 33.8702 | Q37: =P37/3.6 -> 9.408388889 | R37: =S37*238.8459 -> 8954.070061 | S37: 37.4889 | T37: =S37/3.6 -> 10.41358333 | U37: =V37/0.0041868 -> 11189.21372 | V37: 46.847 | W37: =V37/3.6 -> 13.01305556 | AC37: 100 | AD37: ОК
A38: 28 | N38: 0.7688 | O38: =P38*238.8459 -> 8089.758402 | P38: 33.8702 | Q38: =P38/3.6 -> 9.408388889 | R38: =S38*238.8459 -> 8954.070061 | S38: 37.4889 | T38: =S38/3.6 -> 10.41358333 | U38: =V38/0.0041868 -> 11189.21372 | V38: 46.847 | W38: =V38/3.6 -> 13.01305556 | AC38: 0
A39: 29 | N39: 0.7691 | O39: 8089.758402 | P39: 33.8702 | Q39: 9.408388889 | R39: 8954.070061 | S39: 37.4889 | T39: 10.41358333 | U39: 11189.21372 | V39: 46.847 | W39: 13.01305556 | AC39: 0
A40: 30 | N40: 0.7688 | O40: 8089.758402 | P40: 33.8702 | Q40: 9.408388889 | R40: 8954.070061 | S40: 37.4889 | T40: 10.41358333 | U40: 11189.21372 | V40: 46.847 | W40: 13.01305556 | AC40: 0
A41: 31 | N41: 0.7689 | O41: 8089.758402 | P41: 33.8702 | Q41: 9.408388889 | R41: 8954.070061 | S41: 37.4889 | T41: 10.41358333 | U41: 11189.21372 | V41: 46.847 | W41: 13.01305556 | AC41: 0
A42: Рівень одоризації відповідає чинним нормативним документам | O42: =SUMPRODUCT(O11:O41,' розрахунок'!F7:F37)/' розрахунок'!F38 -> 8093.916847 | P42: =SUMPRODUCT(P11:P41,' розрахунок'!F7:F37)/' розрахунок'!F38 -> 33.88761058 | Q42: =SUMPRODUCT(Q11:Q41,' розрахунок'!F7:F37)/' розрахунок'!F38 -> 9.413225161 | R42: =SUMPRODUCT(R11:R41,' розрахунок'!F7:F37)/' розрахунок'!F38 -> 8959.214402 | S42: =SUMPRODUCT(S11:S41,' розрахунок'!F7:F37)/' розрахунок'!F38 -> 37.51043833 | T42: =SUMPRODUCT(T11:T41,' розрахунок'!F7:F37)/' розрахунок'!F38 -> 10.4195662
H43: Середньозважене значення теплоти згоряння:
B46: Начальник управління Сєвєродонецького ЛВУМГ Головко Ю.О.
C47: Підрозділу підприємства, якому підпорядкована лабораторія | O47: прізвище | R47: підпис | V47: дата
B48: Інженер ІІ кат.вимірювальної хіміко-аналітичної лабораторії Єрьоменко М.О.
C49: Лабораторія, де здійснювалось вимірювання газу | O49: прізвище | R49: підпис | V49: дата
B50: Начальник служби метрології Ісаєв В.С.
C51: Підрозділу, відповідального за облік газу за маршрутом | O51: прізвище | R51: підпис | V51: дата

Sheet розрахунок (hidden)
A2: Додаток до Паспорту фізико-хімічних показників природного газу по маршруту № 653
A4: Число місяця | B4: Теплота згоряння вища, МДж/м3 | C4: Луганська область | F4: Загальний обсяг газу, м3
C5: Обсяг газу переданого за добу, м3
C6: ГРС Рубіжне місто | D6: ГРС Рубіжне заря | E6: РКТК
A7: 1 | B7: 37.5457 | C7: 178467.44 | D7: 1969.82 | E7: 163411.38 | F7: =E7+D7+C7 -> 343848.64
A8: 2 | B8: 37.5457 | C8: 174364.7 | D8: 8215.57 | E8: 157205.33 | F8: 339785.6
A9: 3 | B9: 37.5457 | C9: 172145.95 | D9: 1238.72 | E9: 152964.22 | F9: 326348.89
A10: 4 | B10: 37.5457 | C10: 170145.41 | D10: 0 | E10: 82026.38 | F10: 252171.79
A11: 5 | B11: 37.5457 | C11: 166279.23 | D11: 722.62 | E11: 96430.43 | F11: 263432.28
A12: 6 | B12: 37.5457 | C12: 138470.98 | D12: 727.36 | E12: 170559.77 | F12: 309758.11
A13: 7 | B13: 37.5457 | C13: 149402.77 | D13: 774.86 | E13: 110423.11 | F13: 260600.74
A14: 8 | B14: 37.5457 | C14: 165218.97 | D14: 821.87 | E14: 173160.78 | F14: 339201.62
A15: 9 | B15: 37.5457 | C15: 153744.2 | D15: 727.13 | E15: 176439.45 | F15: 330910.78
A16: 10 | B16: 37.5457 | C16: 145026.19 | D16: 771.26 | E16: 170547.58 | F16: 316345.03
A17: 11 | B17: 37.5457 | C17: 147398.77 | D17: 662 | E17: 173360.56 | F17: 321421.33
A18: 12 | B18: 37.5457 | C18: 156106.88 | D18: 0 | E18: 170444.52 | F18: 326551.4
A19: 13 | B19: 37.5457 | C19: 164804.27 | D19: 1522.09 | E19: 183141.7 | F19: 349468.06
A20: 14 | B20: 37.5457 | C20: 161510.98 | D20: 1789.97 | E20: 160061.52 | F20: 323362.47
A21: 15 | B21: 37.4796 | C21: 149377.53 | D21: 654.16 | E21: 170069.41 | F21: 320101.1
A22: 16 | B22: 37.4796 | C22: 151038.39 | D22: 1460.39 | E22: 181131.25 | F22: 333630.03
A23: 17 | B23: 37.4796 | C23: 149890.34 | D23: 926.83 | E23: 157982.64 | F23: 308799.81
A24: 18 | B24: 37.4796 | C24: 158084.97 | D24: 721.29 | E24: 157484.94 | F24: 316291.2
A25: 19 | B25: 37.4796 | C25: 177682.06 | D25: 695.05 | E25: 160149.08 | F25: 338526.19
A26: 20 | B26: 37.4796 | C26: 172150.86 | D26: 500.62 | E26: 153315.91 | F26: 325967.39
A27: 21 | B27: 37.4796 | C27: 168731.98 | D27: 566.36 | E27: 169404.88 | F27: 338703.22
A28: 22 | B28: 37.4796 | C28: 153998.2 | D28: 1299.95 | E28: 169356.83 | F28: 324654.98
A29: 23 | B29: 37.4796 | C29: 136699.08 | D29: 11776.65 | E29: 173566.14 | F29: 322041.87
A30: 24 | B30: 37.4796 | C30: 127888.81 | D30: 11107.43 | E30: 159873.69 | F30: 298869.93
A31: 25 | B31: 37.4796 | C31: 133613.13 | D31: 12416.35 | E31: 161046.45 | F31: 307075.93
A32: 26 | B32: 37.4796 | C32: 146316.56 | D32: 12940.47 | E32: 164577.48 | F32: 323834.51
A33: 27 | B33: 37.4889 | C33: 174041.8 | D33: 13945.28 | E33: 170255.86 | F33: 358242.94
A34: 28 | B34: 37.4889 | C34: 168088.61 | D34: 13190.68 | E34: 169632.75 | F34: 350912.04
A35: 29 | B35: 37.4889 | C35: 153918.67 | D35: 12462.65 | E35: 148030.25 | F35: =C35+D35+E35 -> 314411.57
A36: 30 | B36: 37.4889 | C36: 161818.09 | D36: 12714.48 | E36: 170089.08 | F36: =C36+D36+E36 -> 344621.65
A37: 31 | B37: 37.4889 | C37: 138949.36 | D37: 12962.98 | E37: 164099.25 | F37: =C37+D37+E37 -> 316011.59
A38: Загальний обсяг газу, м3 | C38: =SUM(C7:C37) -> 4865375.18 | D38: =SUM(D7:D37) -> 140284.89 | E38: =SUM(E7:E37) -> 4940242.62 | F38: =SUM(F7:F37) -> 9945902.69
A39: Енергія, МДж | C39: =SUMPRODUCT(B7:B37,C7:C37) -> 182507994 | D39: =SUMPRODUCT(B7:B37,D7:D37) -> 5259746.881 | E39: =SUMPRODUCT(B7:B37,E7:E37) -> 185307428.6 | F39: =SUMPRODUCT(B7:B37,F7:F37) -> 373075169.5
A40: Теплота згоряння (середньозважене значення за місяць), МДж/м³ | C40: =C39/C38 -> 37.51159721 | D40: =D39/D38 -> 37.49332434 | E40: =E39/E38 -> 37.50978299 | F40: =F39/F38 -> 37.51043833
A41: Теплота згоряння (середньозважене значення за місяць), ккал/м³ | C41: =C40*238.8459 -> 8959.491196 | D41: =D40*238.8459 -> 8955.126796 | E41: =E40*238.8459 -> 8959.057876 | F41: =F40*238.8459 -> 8959.214402
A42: Теплота згоряння (середньозважене значення за місяць), кВт*год./м³ | C42: =C40/3.6 -> 10.41988811 | D42: =C40/3.6 -> 10.41988811 | E42: =E40/3.6 -> 10.41938416 | F42: =F40/3.6 -> 10.4195662

Sheet додаток
A2: Додаток до Паспорту фізико-хімічних показників природного газу №653
A4: Область | B4: ГРС, прямий споживач | C4: Cередньозважене значення вищої теплоти згоряння
C5: МДж/м³ | D5: ккал/м³ | E5: кВт*год./м³
A6: Луганська область | B6: ГРС м.Рубіжне,місто | C6: 37.51 | D6: 8959 | E6: 10.42
B7: ГРС м.Рубіжне, заря | C7: 37.49 | D7: 8955 | E7: 10.42
B8: ГРС м.Рубіжне ,РКТК | C8: 37.51 | D8: 8959 | E8: 10.42
A9: Середньозважене значення вищої теплоти згоряння по маршруту № 653 | C9: 37.51 | D9: 8959 | E9: 10.42
A13: Начальник управління Сєвєродонецького ЛВУМГ Головко Ю.О.
A14: Підрозділу підприємства, якому підпорядкована лабораторія | D14: прізвище | E14: підпис | F14: дата
A15: Інженер ІІ кат.вимірювальної хіміко-аналітичної лабораторії Єрьоменко М.О.
A16: Лабораторія, де здійснювалось вимірювання газу | D16: прізвище | E16: підпис | F16: дата
A17: Начальник служби метрології Ісаєв В.С.
A18: Підрозділу, відповідального за облік газу за маршрутом | D18: прізвище | E18: підпис | F18: дата
F24: дата
F26: дата
F28: дата

Sheet variablesList (hidden)
A1: 3 | B1: x:\gaysin | C1: 10, 11, 24, 25, 127, 128, 132, 180, 207, 215 | D1: x:\
B2: x:\Illinci
B3: x:\Talne
